[Event "Titled Tuesday Blitz October 31 Late 2023"]
[White "Pantev, Veselin"]
[Black "Ilamparthi A R"]
[WhiteFideId "2901390"]
[BlackFideId "45015775"]
[WhiteElo "2682"]
[BlackElo "2927"]
[Result "0-1"]
[Round "6"]
[TimeControl "180+1"]
[Date "2023.10.31"]
[WhiteClock "0:00:47"]
[BlackClock "0:00:14"]
[Board "23"]

1. d4 {[%clk 0:03:00]}  Nf6 {[%clk 0:02:59]} 2. Bf4 {[%clk 0:02:59]}  g6 {[%clk 0:02:59]} 3. e3 {[%clk 0:03:00]}  Bg7 {[%clk 0:03:00]} 4. Be2 {[%clk 0:03:00]}  O-O {[%clk 0:03:00]} 5. Nf3 {[%clk 0:03:01]}  d6 {[%clk 0:03:01]} 6. c4 {[%clk 0:03:02]}  Nbd7 {[%clk 0:03:00]} 7. Nc3 {[%clk 0:03:02]}  b6 {[%clk 0:03:01]} 8. Qc2 {[%clk 0:03:02]}  Bb7 {[%clk 0:03:01]} 9. O-O {[%clk 0:03:02]}  Re8 {[%clk 0:03:01]} 10. Rfd1 {[%clk 0:03:01]}  c5 {[%clk 0:02:52]} 11. d5 {[%clk 0:03:01]}  a6 {[%clk 0:02:52]} 12. a4 {[%clk 0:03:01]}  Nh5 {[%clk 0:02:49]} 13. Bg5 {[%clk 0:03:01]}  Rf8 {[%clk 0:02:46]} 14. e4 {[%clk 0:02:59]}  h6 {[%clk 0:02:44]} 15. Be3 {[%clk 0:02:59]}  Nhf6 {[%clk 0:02:37]} 16. h3 {[%clk 0:02:59]}  Bc8 {[%clk 0:02:34]} 17. Qd2 {[%clk 0:02:59]}  Kh7 {[%clk 0:02:34]} 18. Bd3 {[%clk 0:02:59]}  Ng8 {[%clk 0:02:33]} 19. Re1 {[%clk 0:02:57]}  e5 {[%clk 0:02:21]} 20. dxe6 {[%clk 0:02:32]}  fxe6 {[%clk 0:02:22]} 21. Rad1 {[%clk 0:02:32]}  Rxf3 {[%clk 0:01:34]} 22. gxf3 {[%clk 0:02:32]}  Bd4 {[%clk 0:01:33]} 23. f4 {[%clk 0:02:29]}  e5 {[%clk 0:01:29]} 24. Nd5 {[%clk 0:02:24]}  Ndf6 {[%clk 0:01:27]} 25. Bxd4 {[%clk 0:02:17]}  cxd4 {[%clk 0:01:25]} 26. Bf1 {[%clk 0:02:17]}  Nxd5 {[%clk 0:01:24]} 27. exd5 {[%clk 0:02:17]}  Qf6 {[%clk 0:01:09]} 28. fxe5 {[%clk 0:02:16]}  dxe5 {[%clk 0:01:09]} 29. f4 {[%clk 0:02:17]}  exf4 {[%clk 0:01:08]} 30. Qxd4 {[%clk 0:02:17]}  Qg5+ {[%clk 0:01:07]} 31. Kh1 {[%clk 0:02:17]}  Bf5 {[%clk 0:01:07]} 32. Bg2 {[%clk 0:02:12]}  Rf8 {[%clk 0:01:04]} 33. Rf1 {[%clk 0:02:05]}  Qh5 {[%clk 0:00:53]} 34. Qxf4 {[%clk 0:01:41]}  g5 {[%clk 0:00:50]} 35. Qg3 {[%clk 0:01:38]}  g4 {[%clk 0:00:45]} 36. Rde1 {[%clk 0:01:33]}  gxh3 {[%clk 0:00:40]} 37. Bf3 {[%clk 0:01:34]}  Qg5 {[%clk 0:00:35]} 38. Qxg5 {[%clk 0:01:32]}  hxg5 {[%clk 0:00:36]} 39. d6 {[%clk 0:01:26]}  Rd8 {[%clk 0:00:32]} 40. Bc6 {[%clk 0:01:17]}  Rxd6 {[%clk 0:00:22]} 41. Rxf5 {[%clk 0:01:17]}  Rxc6 {[%clk 0:00:23]} 42. Rxg5 {[%clk 0:01:17]}  Rxc4 {[%clk 0:00:23]} 43. Re3 {[%clk 0:01:17]}  Rc1+ {[%clk 0:00:20]} 44. Kh2 {[%clk 0:01:17]}  Rc2+ {[%clk 0:00:20]} 45. Kxh3 {[%clk 0:01:17]}  Rxb2 {[%clk 0:00:21]} 46. Re4 {[%clk 0:01:14]}  Rb3+ {[%clk 0:00:19]} 47. Kg2 {[%clk 0:01:14]}  Nh6 {[%clk 0:00:18]} 48. Rh4 {[%clk 0:01:13]}  Rc3 {[%clk 0:00:18]} 49. Re5 {[%clk 0:01:10]}  Rc6 {[%clk 0:00:18]} 50. Kf3 {[%clk 0:01:10]}  Kg6 {[%clk 0:00:18]} 51. Ke2 {[%clk 0:01:08]}  Nf7 {[%clk 0:00:18]} 52. Rd5 {[%clk 0:01:06]}  Kf6 {[%clk 0:00:17]} 53. Rhd4 {[%clk 0:01:03]}  Ke6 {[%clk 0:00:17]} 54. Rh5 {[%clk 0:01:02]}  Rc1 {[%clk 0:00:15]} 55. Kd2 {[%clk 0:01:00]}  Rc6 {[%clk 0:00:14]} 56. Rf4 {[%clk 0:00:56]}  Ne5 {[%clk 0:00:12]} 57. Rh6+ {[%clk 0:00:56]}  Kd5 {[%clk 0:00:12]} 58. Rxc6 {[%clk 0:00:55]}  Nxc6 {[%clk 0:00:13]} 59. Kc3 {[%clk 0:00:55]}  b5 {[%clk 0:00:12]} 60. axb5 {[%clk 0:00:54]}  axb5 {[%clk 0:00:13]} 61. Rh4 {[%clk 0:00:54]}  Kc5 {[%clk 0:00:13]} 62. Rh5+ {[%clk 0:00:54]}  Kb6 {[%clk 0:00:14]} 63. Rg5 {[%clk 0:00:54]}  Na5 {[%clk 0:00:14]} 64. Kd4 {[%clk 0:00:53]}  Nc6+ {[%clk 0:00:15]} 65. Kd5 {[%clk 0:00:53]}  Nb4+ {[%clk 0:00:15]} 66. Kd6 {[%clk 0:00:52]}  Na6 {[%clk 0:00:15]} 67. Rg1 {[%clk 0:00:51]}  b4 {[%clk 0:00:16]} 68. Kd5 {[%clk 0:00:51]}  Kb5 {[%clk 0:00:16]} 69. Kd4 {[%clk 0:00:50]}  Nc7 {[%clk 0:00:13]} 70. Rg7 {[%clk 0:00:48]}  Ne6+ {[%clk 0:00:13]} 71. Ke5 {[%clk 0:00:47]}  Nxg7 {[%clk 0:00:14]} 0-1


[Site "https://www.chess.com"]

[Event "Titled Tuesday Blitz October 31 Late 2023"]
[White "Mahdavi, Reza"]
[Black "Al-Tarboush, Ward"]
[WhiteFideId "12595926"]
[BlackFideId "7601450"]
[WhiteElo "2923"]
[BlackElo "2657"]
[Result "1/2-1/2"]
[Round "6"]
[TimeControl "180+1"]
[Date "2023.10.31"]
[WhiteClock "0:00:18"]
[BlackClock "0:00:08"]
[Board "24"]

1. e4 {[%clk 0:03:00]}  c5 {[%clk 0:02:59]} 2. Nf3 {[%clk 0:02:59]}  e6 {[%clk 0:03:00]} 3. d4 {[%clk 0:02:59]}  cxd4 {[%clk 0:03:01]} 4. Nxd4 {[%clk 0:03:00]}  a6 {[%clk 0:03:01]} 5. c4 {[%clk 0:03:00]}  Nf6 {[%clk 0:03:01]} 6. Nc3 {[%clk 0:03:00]}  Qc7 {[%clk 0:03:02]} 7. Be2 {[%clk 0:03:00]}  Bb4 {[%clk 0:03:02]} 8. Qb3 {[%clk 0:02:58]}  Bxc3+ {[%clk 0:02:59]} 9. Qxc3 {[%clk 0:02:59]}  Nxe4 {[%clk 0:02:59]} 10. Qa3 {[%clk 0:02:54]}  Qc5 {[%clk 0:02:56]} 11. Qxc5 {[%clk 0:02:53]}  Nxc5 {[%clk 0:02:57]} 12. Bf4 {[%clk 0:02:53]}  Nc6 {[%clk 0:02:56]} 13. Nxc6 {[%clk 0:02:53]}  bxc6 {[%clk 0:02:55]} 14. b4 {[%clk 0:02:53]}  Ne4 {[%clk 0:02:53]} 15. Bf3 {[%clk 0:02:54]}  f5 {[%clk 0:02:52]} 16. Bxe4 {[%clk 0:02:43]}  fxe4 {[%clk 0:02:53]} 17. Bd6 {[%clk 0:02:44]}  a5 {[%clk 0:02:54]} 18. b5 {[%clk 0:02:42]}  cxb5 {[%clk 0:02:54]} 19. cxb5 {[%clk 0:02:43]}  Bb7 {[%clk 0:02:54]} 20. Rc1 {[%clk 0:02:42]}  Rc8 {[%clk 0:02:54]} 21. Kd2 {[%clk 0:02:43]}  Kf7 {[%clk 0:02:53]} 22. Ke3 {[%clk 0:02:37]}  a4 {[%clk 0:02:43]} 23. a3 {[%clk 0:02:34]}  h5 {[%clk 0:02:19]} 24. h4 {[%clk 0:02:27]}  Rxc1 {[%clk 0:02:07]} 25. Rxc1 {[%clk 0:02:28]}  Rc8 {[%clk 0:02:06]} 26. Rxc8 {[%clk 0:02:27]}  Bxc8 {[%clk 0:02:07]} 27. Kd4 {[%clk 0:02:28]}  Bb7 {[%clk 0:01:58]} 28. Kc5 {[%clk 0:02:28]}  e3 {[%clk 0:01:57]} 29. f3 {[%clk 0:02:12]}  e2 {[%clk 0:01:56]} 30. Bg3 {[%clk 0:02:13]}  e5 {[%clk 0:00:57]} 31. Kd6 {[%clk 0:01:54]}  e4 {[%clk 0:00:51]} 32. fxe4 {[%clk 0:00:40]}  Bxe4 {[%clk 0:00:52]} 33. Ke5 {[%clk 0:00:40]}  Bxg2 {[%clk 0:00:51]} 34. Kd4 {[%clk 0:00:41]}  Ke6 {[%clk 0:00:17]} 35. Ke3 {[%clk 0:00:36]}  Kd5 {[%clk 0:00:11]} 36. Kxe2 {[%clk 0:00:32]}  Kc5 {[%clk 0:00:11]} 37. Ke3 {[%clk 0:00:33]}  Kxb5 {[%clk 0:00:10]} 38. Kd4 {[%clk 0:00:33]}  g6 {[%clk 0:00:09]} 39. Bd6 {[%clk 0:00:30]}  Kc6 {[%clk 0:00:08]} 40. Be7 {[%clk 0:00:30]}  d5 {[%clk 0:00:06]} 41. Bg5 {[%clk 0:00:23]}  Bf3 {[%clk 0:00:06]} 42. Bf6 {[%clk 0:00:23]}  Be4 {[%clk 0:00:06]} 43. Bg5 {[%clk 0:00:23]}  Kd6 {[%clk 0:00:07]} 44. Bd8 {[%clk 0:00:14]}  Ke6 {[%clk 0:00:07]} 45. Bg5 {[%clk 0:00:14]}  Kf5 {[%clk 0:00:07]} 46. Bd8 {[%clk 0:00:12]}  Kf4 {[%clk 0:00:07]} 47. Bg5+ {[%clk 0:00:11]}  Kf3 {[%clk 0:00:07]} 48. Bf6 {[%clk 0:00:10]}  Ke2 {[%clk 0:00:07]} 49. Be7 {[%clk 0:00:10]}  Kd2 {[%clk 0:00:08]} 50. Bd8 {[%clk 0:00:10]}  Kc2 {[%clk 0:00:08]} 51. Be7 {[%clk 0:00:08]}  Kb2 {[%clk 0:00:09]} 52. Bd6 {[%clk 0:00:03]}  g5 {[%clk 0:00:08]} 53. hxg5 {[%clk 0:00:04]}  h4 {[%clk 0:00:08]} 54. g6 {[%clk 0:00:02]}  Bxg6 {[%clk 0:00:05]} 55. Kxd5 {[%clk 0:00:03]}  h3 {[%clk 0:00:06]} 56. Kd4 {[%clk 0:00:02]}  Kb3 {[%clk 0:00:06]} 57. Ke3 {[%clk 0:00:02]}  Bf5 {[%clk 0:00:06]} 58. Kd2 {[%clk 0:00:03]}  Be6 {[%clk 0:00:05]} 59. Kc1 {[%clk 0:00:03]}  Bd7 {[%clk 0:00:05]} 60. Kb1 {[%clk 0:00:03]}  Bf5+ {[%clk 0:00:05]} 61. Ka1 {[%clk 0:00:04]}  Kc2 {[%clk 0:00:05]} 62. Bh2 {[%clk 0:00:05]}  Be6 {[%clk 0:00:05]} 63. Bb8 {[%clk 0:00:05]}  Bb3 {[%clk 0:00:05]} 64. Bh2 {[%clk 0:00:06]}  Kd2 {[%clk 0:00:05]} 65. Bb8 {[%clk 0:00:07]}  Ke2 {[%clk 0:00:05]} 66. Bh2 {[%clk 0:00:08]}  Kf2 {[%clk 0:00:06]} 67. Bb8 {[%clk 0:00:09]}  Kg2 {[%clk 0:00:06]} 68. Bc7 {[%clk 0:00:10]}  h2 {[%clk 0:00:06]} 69. Bxh2 {[%clk 0:00:10]}  Kxh2 {[%clk 0:00:06]} 70. Kb2 {[%clk 0:00:11]}  Kg3 {[%clk 0:00:07]} 71. Ka1 {[%clk 0:00:12]}  Kf3 {[%clk 0:00:07]} 72. Kb2 {[%clk 0:00:13]}  Ke3 {[%clk 0:00:08]} 73. Ka1 {[%clk 0:00:14]}  Kd3 {[%clk 0:00:08]} 74. Kb2 {[%clk 0:00:15]}  Kc4 {[%clk 0:00:08]} 75. Ka1 {[%clk 0:00:16]}  Kc3 {[%clk 0:00:09]} 76. Kb1 {[%clk 0:00:16]}  Bd5 {[%clk 0:00:08]} 77. Ka1 {[%clk 0:00:17]}  Kb3 {[%clk 0:00:08]} 78. Kb1 {[%clk 0:00:17]}  Kxa3 {[%clk 0:00:08]} 79. Ka1 {[%clk 0:00:18]}  Ba2 {[%clk 0:00:08]} 1/2-1/2


[Site "https://www.chess.com"]

[Event "Titled Tuesday Blitz October 31 Late 2023"]
[White "Bauman_Guy"]
[Black "Pinheiro, Iung Alicio de O."]
[BlackFideId "2104350"]
[WhiteElo "2909"]
[BlackElo "2644"]
[Result "1-0"]
[Round "6"]
[TimeControl "180+1"]
[Date "2023.10.31"]
[WhiteClock "0:00:16"]
[BlackClock "0:00:00"]
[Board "26"]

1. e4 {[%clk 0:03:00]}  c5 {[%clk 0:02:55]} 2. Nf3 {[%clk 0:03:01]}  Nc6 {[%clk 0:02:55]} 3. d4 {[%clk 0:03:01]}  cxd4 {[%clk 0:02:54]} 4. Nxd4 {[%clk 0:03:02]}  e5 {[%clk 0:02:54]} 5. Nb5 {[%clk 0:03:02]}  d6 {[%clk 0:02:55]} 6. a4 {[%clk 0:03:02]}  Be7 {[%clk 0:02:51]} 7. N1c3 {[%clk 0:03:01]}  a6 {[%clk 0:02:51]} 8. Na3 {[%clk 0:03:02]}  Be6 {[%clk 0:02:38]} 9. Bc4 {[%clk 0:03:01]}  Nb4 {[%clk 0:02:25]} 10. O-O {[%clk 0:02:59]}  Nf6 {[%clk 0:02:22]} 11. Bg5 {[%clk 0:02:58]}  Rc8 {[%clk 0:02:20]} 12. Bxf6 {[%clk 0:02:54]}  Bxf6 {[%clk 0:02:16]} 13. Nd5 {[%clk 0:02:52]}  Nxd5 {[%clk 0:01:55]} 14. Bxd5 {[%clk 0:02:53]}  Qc7 {[%clk 0:01:48]} 15. c3 {[%clk 0:02:48]}  O-O {[%clk 0:01:32]} 16. Qb3 {[%clk 0:02:42]}  Bd7 {[%clk 0:00:45]} 17. Rfd1 {[%clk 0:02:28]}  Rb8 {[%clk 0:00:21]} 18. Nc4 {[%clk 0:02:23]}  Bxa4 {[%clk 0:00:13]} 19. Rxa4 {[%clk 0:02:10]}  b5 {[%clk 0:00:13]} 20. Rxa6 {[%clk 0:02:10]}  bxc4 {[%clk 0:00:14]} 21. Qa2 {[%clk 0:02:11]}  Be7 {[%clk 0:00:12]} 22. Ra7 {[%clk 0:02:05]}  Qd8 {[%clk 0:00:13]} 23. Bxc4 {[%clk 0:02:04]}  g6 {[%clk 0:00:12]} 24. b4 {[%clk 0:02:03]}  Kg7 {[%clk 0:00:12]} 25. Qa5 {[%clk 0:01:55]}  h5 {[%clk 0:00:08]} 26. Qxd8 {[%clk 0:01:52]}  Bxd8 {[%clk 0:00:08]} 27. Rxd6 {[%clk 0:01:52]}  Rc8 {[%clk 0:00:09]} 28. Bd5 {[%clk 0:01:48]}  Rxc3 {[%clk 0:00:09]} 29. g3 {[%clk 0:01:49]}  Rd3 {[%clk 0:00:07]} 30. Rdd7 {[%clk 0:01:46]}  Bb6 {[%clk 0:00:07]} 31. Rxf7+ {[%clk 0:01:45]}  Rxf7 {[%clk 0:00:07]} 32. Rxf7+ {[%clk 0:01:46]}  Kh6 {[%clk 0:00:08]} 33. Kg2 {[%clk 0:01:34]}  Rd2 {[%clk 0:00:08]} 34. b5 {[%clk 0:01:33]}  Bd4 {[%clk 0:00:08]} 35. h4 {[%clk 0:01:33]}  Rb2 {[%clk 0:00:06]} 36. Bc6 {[%clk 0:01:32]}  g5 {[%clk 0:00:01]} 37. Rf6+ {[%clk 0:01:32]}  Kg7 {[%clk 0:00:02]} 38. hxg5 {[%clk 0:01:33]}  Bc5 {[%clk 0:00:02]} 39. Rf5 {[%clk 0:01:32]}  Bd4 {[%clk 0:00:03]} 40. Be8 {[%clk 0:01:32]}  Rb3 {[%clk 0:00:01]} 41. f4 {[%clk 0:01:26]}  Rb2+ {[%clk 0:00:01]} 42. Kh3 {[%clk 0:01:26]}  Bg1 {[%clk 0:00:02]} 43. g4 {[%clk 0:00:54]}  Rh2+ {[%clk 0:00:01]} 44. Kg3 {[%clk 0:00:55]}  h4+ {[%clk 0:00:02]} 45. Kf3 {[%clk 0:00:56]}  Rf2+ {[%clk 0:00:03]} 46. Ke3 {[%clk 0:00:56]}  Rxf4+ {[%clk 0:00:04]} 47. Kd3 {[%clk 0:00:54]}  Rxg4 {[%clk 0:00:04]} 48. g6 {[%clk 0:00:50]}  h3 {[%clk 0:00:04]} 49. Rf7+ {[%clk 0:00:50]}  Kxg6 {[%clk 0:00:04]} 50. Rh7+ {[%clk 0:00:51]}  Kg5 {[%clk 0:00:04]} 51. Rxh3 {[%clk 0:00:43]}  Bd4 {[%clk 0:00:05]} 52. Rh5+ {[%clk 0:00:36]}  Kf6 {[%clk 0:00:03]} 53. Bc6 {[%clk 0:00:27]}  Rg3+ {[%clk 0:00:03]} 54. Kc4 {[%clk 0:00:28]}  Rc3+ {[%clk 0:00:04]} 55. Kb4 {[%clk 0:00:28]}  Rc1 {[%clk 0:00:05]} 56. Rh6+ {[%clk 0:00:28]}  Ke7 {[%clk 0:00:05]} 57. Bd5 {[%clk 0:00:23]}  Rb1+ {[%clk 0:00:05]} 58. Bb3 {[%clk 0:00:23]}  Rc1 {[%clk 0:00:05]} 59. b6 {[%clk 0:00:19]}  Kd7 {[%clk 0:00:04]} 60. Rh7+ {[%clk 0:00:15]}  Kc8 {[%clk 0:00:03]} 61. b7+ {[%clk 0:00:15]}  Kb8 {[%clk 0:00:03]} 62. Bd5 {[%clk 0:00:15]}  Rb1+ {[%clk 0:00:04]} 63. Kc4 {[%clk 0:00:16]}  Rc1+ {[%clk 0:00:00]} 64. Kd3 {[%clk 0:00:16]} 1-0


[Site "https://www.chess.com"]

[Event "Titled Tuesday Blitz October 31 Late 2023"]
[White "Zeynalli, Rashad"]
[Black "Alexandre, Anne Shopie Elizabeth"]
[WhiteFideId "13403320"]
[BlackFideId "11902418"]
[WhiteElo "2638"]
[BlackElo "2842"]
[Result "0-1"]
[Round "6"]
[TimeControl "180+1"]
[Date "2023.10.31"]
[WhiteClock "0:00:05"]
[BlackClock "0:00:53"]
[Board "28"]

1. e4 {[%clk 0:03:00]}  c5 {[%clk 0:02:59]} 2. Nf3 {[%clk 0:03:00]}  d6 {[%clk 0:03:00]} 3. d4 {[%clk 0:03:01]}  cxd4 {[%clk 0:03:00]} 4. Nxd4 {[%clk 0:03:02]}  Nf6 {[%clk 0:03:01]} 5. Nc3 {[%clk 0:03:02]}  a6 {[%clk 0:03:01]} 6. Be3 {[%clk 0:03:03]}  Ng4 {[%clk 0:03:00]} 7. Bc1 {[%clk 0:03:02]}  Nf6 {[%clk 0:03:00]} 8. Be3 {[%clk 0:03:02]}  e5 {[%clk 0:03:00]} 9. Nb3 {[%clk 0:03:01]}  Be6 {[%clk 0:02:57]} 10. h3 {[%clk 0:03:01]}  Nbd7 {[%clk 0:02:53]} 11. Qf3 {[%clk 0:03:02]}  Rc8 {[%clk 0:02:52]} 12. g4 {[%clk 0:02:54]}  h6 {[%clk 0:02:45]} 13. Bd3 {[%clk 0:02:53]}  Be7 {[%clk 0:02:41]} 14. Nd5 {[%clk 0:02:49]}  Bxd5 {[%clk 0:02:41]} 15. exd5 {[%clk 0:02:49]}  Nb6 {[%clk 0:02:42]} 16. Bxb6 {[%clk 0:02:25]}  Qxb6 {[%clk 0:02:41]} 17. O-O-O {[%clk 0:02:25]}  Nd7 {[%clk 0:02:24]} 18. Kb1 {[%clk 0:02:17]}  Nc5 {[%clk 0:02:23]} 19. Nxc5 {[%clk 0:02:17]}  Qxc5 {[%clk 0:02:23]} 20. h4 {[%clk 0:02:05]}  b5 {[%clk 0:02:13]} 21. g5 {[%clk 0:01:50]}  hxg5 {[%clk 0:02:11]} 22. hxg5 {[%clk 0:01:50]}  Rxh1 {[%clk 0:02:11]} 23. Rxh1 {[%clk 0:01:49]}  Bxg5 {[%clk 0:02:08]} 24. Bf5 {[%clk 0:00:40]}  Rd8 {[%clk 0:01:56]} 25. Be6 {[%clk 0:00:26]}  Bf6 {[%clk 0:01:02]} 26. Rh8+ {[%clk 0:00:23]}  Ke7 {[%clk 0:01:02]} 27. Rxd8 {[%clk 0:00:23]}  Kxd8 {[%clk 0:01:02]} 28. Bxf7 {[%clk 0:00:24]}  b4 {[%clk 0:00:58]} 29. Be6 {[%clk 0:00:22]}  a5 {[%clk 0:00:58]} 30. a3 {[%clk 0:00:19]}  bxa3 {[%clk 0:00:58]} 31. Qxa3 {[%clk 0:00:18]}  Qxa3 {[%clk 0:00:58]} 32. bxa3 {[%clk 0:00:18]}  Kc7 {[%clk 0:00:56]} 33. Ka2 {[%clk 0:00:18]}  Kb6 {[%clk 0:00:56]} 34. Kb3 {[%clk 0:00:18]}  e4 {[%clk 0:00:56]} 35. Bf5 {[%clk 0:00:16]}  Bd4 {[%clk 0:00:56]} 36. Bxe4 {[%clk 0:00:17]}  Bxf2 {[%clk 0:00:57]} 37. Kc4 {[%clk 0:00:15]}  Bc5 {[%clk 0:00:55]} 38. Bg6 {[%clk 0:00:15]}  Bxa3 {[%clk 0:00:54]} 39. Kb3 {[%clk 0:00:13]}  Bc5 {[%clk 0:00:54]} 40. Kc4 {[%clk 0:00:14]}  Ka6 {[%clk 0:00:52]} 41. Kb3 {[%clk 0:00:13]}  Kb6 {[%clk 0:00:52]} 42. Kc4 {[%clk 0:00:13]}  a4 {[%clk 0:00:52]} 43. Kc3 {[%clk 0:00:12]}  a3 {[%clk 0:00:52]} 44. Kb3 {[%clk 0:00:05]}  Kc7 {[%clk 0:00:53]} 0-1


[Site "https://www.chess.com"]

[Event "Titled Tuesday Blitz October 31 Late 2023"]
[White "Kamsky, Gata"]
[Black "Manukyan, Sargis A."]
[WhiteFideId "2000024"]
[BlackFideId "13303970"]
[WhiteElo "2831"]
[BlackElo "2633"]
[Result "1/2-1/2"]
[Round "6"]
[TimeControl "180+1"]
[Date "2023.10.31"]
[WhiteClock "0:00:39"]
[BlackClock "0:00:04"]
[Board "29"]

1. d4 {[%clk 0:02:58]}  d5 {[%clk 0:03:00]} 2. Bf4 {[%clk 0:02:58]}  Nf6 {[%clk 0:02:59]} 3. e3 {[%clk 0:02:55]}  c5 {[%clk 0:02:51]} 4. c3 {[%clk 0:02:55]}  Nc6 {[%clk 0:02:51]} 5. Nd2 {[%clk 0:02:54]}  e6 {[%clk 0:02:49]} 6. Ngf3 {[%clk 0:02:54]}  Nh5 {[%clk 0:02:43]} 7. Bg5 {[%clk 0:02:54]}  f6 {[%clk 0:02:43]} 8. Bh4 {[%clk 0:02:52]}  Bd6 {[%clk 0:02:39]} 9. Bd3 {[%clk 0:02:46]}  cxd4 {[%clk 0:02:36]} 10. cxd4 {[%clk 0:02:45]}  g6 {[%clk 0:02:21]} 11. a3 {[%clk 0:02:43]}  O-O {[%clk 0:02:18]} 12. O-O {[%clk 0:02:42]}  Bd7 {[%clk 0:02:15]} 13. Rc1 {[%clk 0:02:41]}  Rc8 {[%clk 0:02:15]} 14. Re1 {[%clk 0:02:34]}  Ng7 {[%clk 0:02:10]} 15. Bg3 {[%clk 0:02:32]}  Qe7 {[%clk 0:02:05]} 16. Bxd6 {[%clk 0:02:29]}  Qxd6 {[%clk 0:02:05]} 17. e4 {[%clk 0:02:29]}  Rfe8 {[%clk 0:01:57]} 18. b4 {[%clk 0:02:27]}  Qf8 {[%clk 0:01:46]} 19. Qb3 {[%clk 0:02:15]}  Ne7 {[%clk 0:01:38]} 20. e5 {[%clk 0:02:13]}  h5 {[%clk 0:01:21]} 21. exf6 {[%clk 0:02:12]}  Qxf6 {[%clk 0:01:21]} 22. Ne5 {[%clk 0:02:12]}  Rcd8 {[%clk 0:00:57]} 23. Nxd7 {[%clk 0:02:07]}  Rxd7 {[%clk 0:00:56]} 24. Bb5 {[%clk 0:02:08]}  Nc6 {[%clk 0:00:54]} 25. Rxc6 {[%clk 0:02:02]}  bxc6 {[%clk 0:00:52]} 26. Bxc6 {[%clk 0:02:01]}  Rf8 {[%clk 0:00:51]} 27. Nf3 {[%clk 0:01:58]}  Rc7 {[%clk 0:00:50]} 28. b5 {[%clk 0:01:57]}  g5 {[%clk 0:00:48]} 29. Qb2 {[%clk 0:01:43]}  Nf5 {[%clk 0:00:42]} 30. Ne5 {[%clk 0:01:38]}  Nh4 {[%clk 0:00:29]} 31. Nd7 {[%clk 0:01:22]}  Qf4 {[%clk 0:00:06]} 32. Nxf8 {[%clk 0:01:20]}  Qg4 {[%clk 0:00:04]} 33. g3 {[%clk 0:01:06]}  Nf3+ {[%clk 0:00:04]} 34. Kf1 {[%clk 0:01:05]}  Nxe1 {[%clk 0:00:05]} 35. Kxe1 {[%clk 0:01:05]}  Kxf8 {[%clk 0:00:06]} 36. Qb4+ {[%clk 0:01:04]}  Kg8 {[%clk 0:00:06]} 37. Qd2 {[%clk 0:00:53]}  Rf7 {[%clk 0:00:05]} 38. Qe3 {[%clk 0:00:52]}  Qf5 {[%clk 0:00:05]} 39. Kf1 {[%clk 0:00:47]}  Qb1+ {[%clk 0:00:05]} 40. Kg2 {[%clk 0:00:47]}  g4 {[%clk 0:00:02]} 41. Qg5+ {[%clk 0:00:45]}  Kf8 {[%clk 0:00:03]} 42. Qd8+ {[%clk 0:00:44]}  Kg7 {[%clk 0:00:03]} 43. Qg5+ {[%clk 0:00:44]}  Kf8 {[%clk 0:00:03]} 44. Qd8+ {[%clk 0:00:39]}  Kg7 {[%clk 0:00:03]} 45. Qg5+ {[%clk 0:00:39]}  Kf8 {[%clk 0:00:04]} 1/2-1/2


[Site "https://www.chess.com"]

[Event "Titled Tuesday Blitz October 31 Late 2023"]
[White "Bjelobrk, Igor"]
[Black "Zakhartsov, Vladimir"]
[WhiteFideId "4300726"]
[BlackFideId "4145097"]
[WhiteElo "2628"]
[BlackElo "2824"]
[Result "0-1"]
[Round "6"]
[TimeControl "180+1"]
[Date "2023.10.31"]
[WhiteClock "0:00:09"]
[BlackClock "0:00:04"]
[Board "30"]

1. d4 {[%clk 0:03:00]}  Nf6 {[%clk 0:02:17]} 2. c4 {[%clk 0:02:58]}  e6 {[%clk 0:02:14]} 3. g3 {[%clk 0:02:57]}  c5 {[%clk 0:02:11]} 4. d5 {[%clk 0:02:57]}  exd5 {[%clk 0:02:11]} 5. cxd5 {[%clk 0:02:57]}  b5 {[%clk 0:02:12]} 6. e4 {[%clk 0:02:53]}  Nxe4 {[%clk 0:02:12]} 7. Bg2 {[%clk 0:02:42]}  Nd6 {[%clk 0:02:09]} 8. Nf3 {[%clk 0:02:41]}  Be7 {[%clk 0:02:09]} 9. O-O {[%clk 0:02:41]}  O-O {[%clk 0:02:10]} 10. Bf4 {[%clk 0:02:29]}  Bb7 {[%clk 0:02:04]} 11. Re1 {[%clk 0:02:27]}  Nf5 {[%clk 0:02:01]} 12. Qd3 {[%clk 0:02:07]}  g6 {[%clk 0:01:59]} 13. d6 {[%clk 0:01:59]}  Bf6 {[%clk 0:01:59]} 14. Qxb5 {[%clk 0:01:59]}  Bc6 {[%clk 0:01:54]} 15. Qb3 {[%clk 0:01:53]}  Qb6 {[%clk 0:01:51]} 16. Nc3 {[%clk 0:01:51]}  Na6 {[%clk 0:01:46]} 17. Nd5 {[%clk 0:01:41]}  Bxd5 {[%clk 0:01:45]} 18. Qxd5 {[%clk 0:01:42]}  Nb4 {[%clk 0:01:46]} 19. Qd2 {[%clk 0:01:40]}  Rae8 {[%clk 0:01:43]} 20. Ne5 {[%clk 0:01:34]}  Rd8 {[%clk 0:01:35]} 21. a3 {[%clk 0:01:30]}  Nc6 {[%clk 0:01:34]} 22. Bxc6 {[%clk 0:01:23]}  dxc6 {[%clk 0:01:35]} 23. d7 {[%clk 0:01:20]}  Nd4 {[%clk 0:01:33]} 24. Qd3 {[%clk 0:00:54]}  Qb5 {[%clk 0:01:30]} 25. Rad1 {[%clk 0:00:51]}  Qxd3 {[%clk 0:01:24]} 26. Rxd3 {[%clk 0:00:51]}  Bxe5 {[%clk 0:01:24]} 27. Rxe5 {[%clk 0:00:52]}  Rxd7 {[%clk 0:01:23]} 28. Kf1 {[%clk 0:00:52]}  c4 {[%clk 0:01:09]} 29. Rc3 {[%clk 0:00:52]}  Ne6 {[%clk 0:00:37]} 30. Bh6 {[%clk 0:00:51]}  Rb8 {[%clk 0:00:34]} 31. Rxc4 {[%clk 0:00:50]}  c5 {[%clk 0:00:33]} 32. b4 {[%clk 0:00:49]}  cxb4 {[%clk 0:00:33]} 33. axb4 {[%clk 0:00:49]}  Rdb7 {[%clk 0:00:30]} 34. b5 {[%clk 0:00:46]}  Ng7 {[%clk 0:00:21]} 35. g4 {[%clk 0:00:43]}  f6 {[%clk 0:00:15]} 36. Rd5 {[%clk 0:00:42]}  Ne6 {[%clk 0:00:14]} 37. Rc6 {[%clk 0:00:40]}  Kf7 {[%clk 0:00:13]} 38. Rdd6 {[%clk 0:00:40]}  Re7 {[%clk 0:00:13]} 39. b6 {[%clk 0:00:24]}  Rxb6 {[%clk 0:00:13]} 40. Rxb6 {[%clk 0:00:25]}  axb6 {[%clk 0:00:13]} 41. Rxb6 {[%clk 0:00:25]}  g5 {[%clk 0:00:14]} 42. Rb8 {[%clk 0:00:19]}  Re8 {[%clk 0:00:06]} 43. Rxe8 {[%clk 0:00:18]}  Kxe8 {[%clk 0:00:07]} 44. h4 {[%clk 0:00:19]}  Kf7 {[%clk 0:00:07]} 45. h5 {[%clk 0:00:18]}  Nf4 {[%clk 0:00:06]} 46. f3 {[%clk 0:00:15]}  Nd5 {[%clk 0:00:06]} 47. Kf2 {[%clk 0:00:15]}  Nf4 {[%clk 0:00:04]} 48. Kg3 {[%clk 0:00:16]}  Ne2+ {[%clk 0:00:04]} 49. Kf2 {[%clk 0:00:16]}  Nf4 {[%clk 0:00:05]} 50. Kg3 {[%clk 0:00:17]}  Nd5 {[%clk 0:00:04]} 51. Kf2 {[%clk 0:00:17]}  Ne7 {[%clk 0:00:03]} 52. Kg3 {[%clk 0:00:17]}  Ng8 {[%clk 0:00:03]} 53. Bxg5 {[%clk 0:00:14]}  fxg5 {[%clk 0:00:04]} 54. f4 {[%clk 0:00:15]}  Kf6 {[%clk 0:00:04]} 55. Kf3 {[%clk 0:00:09]}  Nh6 {[%clk 0:00:04]} 0-1


[Site "https://www.chess.com"]